bitfinex/quotes_ETHUSD_20240925
["timestamp","ask_amount","ask_price","bid_price","bid_amount"]
[1727307219609,11.37621322,2577.0,2576.9,0.0368643]
[1727307219775,10.97106583,2577.0,2576.9,0.0368643]
[1727307219977,8.53181401,2577.0,2576.9,0.0368643]
[1727307220912,9.08181401,2577.0,2576.9,0.0368643]
[1727307221405,11.52106583,2577.0,2576.9,0.0368643]
[1727307221616,9.08181401,2577.0,2576.9,0.0368643]
[1727307221984,11.52106583,2577.0,2576.9,0.0368643]
[1727307222882,8.52106583,2577.0,2576.9,0.0368643]
[1727307223209,4.43048,2577.0,2576.9,0.0368643]
[1727307224014,6.87223135,2577.0,2576.9,0.0368643]
[1727307224185,9.87223135,2577.0,2576.9,0.0368643]
[1727307224386,7.43048,2577.0,2576.9,0.0368643]
[1727307224592,11.10908991,2577.0,2576.9,0.0368643]
[1727307224792,12.97447363,2577.0,2576.9,0.0368643]
[1727307225321,13.38080932,2577.0,2576.9,0.0368643]
[1727307225475,10.53077028,2577.0,2576.9,0.0368643]
[1727307227645,13.8973789,2577.0,2576.9,0.0368643]
[1727307228142,10.53077028,2577.0,2576.9,0.0368643]
[1727307228308,13.89864184,2577.0,2576.9,0.0368643]
[1727307228504,13.89860553,2577.0,2576.9,0.0368643]
[1727307228704,13.89889819,2577.0,2576.9,0.0368643]
[1727307228939,10.53077028,2577.0,2576.9,0.0368643]
[1727307229312,30.45077028,2577.0,2576.9,0.0368643]
[1727307229513,35.3956818,2577.0,2576.9,0.0368643]
[1727307230043,35.39645567,2577.0,2576.9,0.0368643]
[1727307231843,29.49576372,2577.0,2576.9,0.0368643]
[1727307232397,28.66586372,2577.0,2576.9,0.0368643]
[1727307232947,31.51809927,2577.0,2576.9,0.0368643]
[1727307233752,29.21586372,2577.0,2576.9,0.0368643]
[1727307234740,35.39894794,2577.0,2576.9,0.0368643]
[1727307235265,32.02922035,2577.0,2576.9,0.0368643]
[1727307239020,35.39954062,2577.0,2576.9,0.0368643]
[1727307239442,35.39951741,2577.0,2576.9,0.0368643]
[1727307240436,32.02922035,2577.0,2576.9,0.0368643]
[1727307241222,34.54954091,2577.0,2576.9,0.00808683]
[1727307241718,38.59435218,2577.0,2576.9,0.00808683]
[1727307243160,34.02922035,2577.0,2576.9,0.00808683]
[1727307244764,32.02922035,2577.0,2576.9,0.00808683]
[1727307245128,35.39827713,2577.0,2576.9,0.00808683]
[1727307245328,32.02922035,2577.0,2576.9,0.00808683]
[1727307245685,32.02922035,2577.0,2576.1,0.8563643]
[1727307245686,0.7851,2576.8,2576.1,0.8563643]
[1727307245973,13.54106734,2576.2,2576.1,0.8563643]
[1727307246327,13.54063722,2576.2,2576.1,0.8563643]
[1727307246527,11.09607727,2576.2,2576.1,0.0368643]
[1727307246733,13.52851721,2576.2,2576.1,0.0368643]
[1727307247165,16.3807129,2576.2,2576.1,0.0368643]
[1727307247569,16.37976635,2576.2,2576.1,0.0368643]
[1727307247935,7.28666279,2576.2,2576.1,0.8363643]
[1727307248173,2.03622991,2576.2,2576.1,0.8363643]
[1727307248343,6.73212095,2576.2,2576.1,0.8363643]
[1727307248542,3.88168,2576.2,2576.1,0.8363643]
[1727307248758,5.10325627,2576.2,2576.1,0.8363643]
[1727307249377,5.51056293,2576.2,2576.1,0.8363643]
[1727307249578,3.88168,2576.2,2576.1,0.8363643]
[1727307249784,5.51068754,2576.2,2576.1,0.8363643]
[1727307249979,3.97873314,2576.2,2576.1,0.8363643]
[1727307250285,5.51068778,2576.2,2576.1,0.8363643]
[1727307251208,5.60774166,2576.2,2576.1,0.8363643]
[1727307251487,5.91790991,2576.2,2576.1,0.8363643]
[1727307252278,5.51081923,2576.2,2576.1,0.8363643]
[1727307253690,1.22196885,2576.3,2576.1,0.8363643]
[1727307253993,4.69597989,2576.4,2576.1,0.8363643]
[1727307254147,4.79322785,2576.3,2576.1,0.8363643]
[1727307254363,0.81458989,2576.2,2576.1,0.8363643]
[1727307254579,4.69626989,2576.2,2576.1,0.8363643]
[1727307254887,3.88168,2576.2,2576.1,0.8363643]
[1727307255075,4.79338628,2576.2,2576.1,0.8363643]
[1727307255279,5.10364885,2576.2,2576.1,0.8363643]
[1727307256719,1.22196885,2576.2,2576.1,0.8363643]
[1727307257079,0.81500983,2576.2,2576.1,0.8363643]
[1727307259019,0.81500983,2576.3,2576.1,0.8363643]
[1727307259737,0.81500983,2576.3,2576.2,0.831]
[1727307259879,0.81500983,2576.4,2576.2,0.831]
[1727307260214,0.81500983,2576.5,2576.2,0.831]
[1727307260512,0.81500983,2576.4,2576.2,0.831]
[1727307260722,4.69636983,2576.5,2576.2,0.831]
[1727307261725,0.81500983,2576.5,2576.2,0.831]
[1727307261881,4.69625983,2576.5,2576.2,0.831]
[1727307262217,3.88125,2576.5,2576.2,0.831]
[1727307263316,4.69646983,2576.4,2576.2,0.831]
[1727307264376,3.88153,2576.3,2576.2,0.831]
[1727307264620,4.69653983,2576.3,2576.2,0.831]
[1727307265790,3.88153,2576.3,2576.2,0.831]
[1727307267198,3.88168,2576.2,2576.1,0.0368643]
[1727307267470,9.66947987,2576.2,2575.3,0.0368643]
[1727307267640,3.88289,2575.4,2575.3,0.0368643]
[1727307267931,8.18459,2575.4,2575.3,0.0368643]
[1727307268083,11.84898727,2575.4,2575.3,0.0368643]
[1727307268289,10.62719652,2575.4,2575.3,0.0368643]
[1727307268518,16.73371614,2575.4,2575.3,0.0368643]
[1727307268736,20.1009163,2575.4,2575.3,0.0368643]
[1727307269033,16.43651903,2575.4,2575.3,0.0368643]
[1727307269251,16.43651903,2575.4,2574.6,0.0368643]
[1727307269252,2.0,2575.3,2574.6,0.0368643]
[1727307269545,14.29034728,2574.7,2574.6,0.0368643]
[1727307269754,11.99714386,2574.7,2574.6,0.0368643]
[1727307270037,6.88394,2574.7,2574.6,0.0368643]
[1727307270218,8.10290777,2574.7,2574.6,0.0368643]
[1727307270420,8.65290777,2574.7,2574.6,0.0368643]
[1727307270621,10.27260847,2574.7,2574.6,0.0368643]
[1727307270933,8.65290777,2574.7,2574.6,0.0368643]
[1727307271327,8.24598754,2574.7,2574.6,0.0368643]
[1727307271540,8.65290777,2574.7,2574.6,0.0368643]
[1727307271738,7.43394,2574.7,2574.6,0.0368643]
[1727307272037,8.24593101,2574.7,2574.6,0.0368643]
[1727307272338,7.69593101,2574.7,2574.6,0.0368643]
[1727307272545,3.88394,2574.7,2574.6,0.0368643]
[1727307272698,3.88394,2574.7,2574.6,0.7887643]
[1727307273738,3.88394,2574.7,2574.6,0.0368643]
[1727307274329,7.75782538,2574.7,2574.6,0.0368643]
[1727307274539,7.660709,2574.7,2574.6,0.0368643]
[1727307274704,6.88394,2574.7,2574.6,0.0368643]
[1727307280128,3.88394,2574.7,2574.6,0.0368643]
[1727307280686,3.88306,2575.3,2574.6,3.9209343]
[1727307280687,3.88315,2575.3,2574.6,3.9209343]
[1727307280957,3.88315,2575.3,2574.8,3.66439727]
[1727307280958,3.88322,2575.2,2574.8,3.66439727]
[1727307281185,3.88315,2575.3,2574.8,3.66439727]
[1727307281354,3.88315,2575.3,2575.0,3.66439727]
[1727307281767,3.88292,2575.4,2575.0,3.66439727]
[1727307281963,3.88249,2575.7,2575.3,0.7878]
[1727307282162,3.88221,2575.9,2575.8,0.7878]
[1727307282553,3.88188,2576.1,2575.8,0.7878]
[1727307282773,3.88213,2575.9,2575.8,0.7878]
[1727307284681,4.47638828,2576.6,2575.3,0.8043]
[1727307284682,3.88289,2575.4,2575.3,0.8043]
[1727307287079,7.76658,2575.2,2574.8,0.7719]
[1727307287278,3.88325,2575.2,2574.8,0.7719]
[1727307287502,7.76655,2575.2,2574.8,0.7719]
[1727307287639,3.88336,2575.1,2574.8,0.7719]
[1727307288746,3.88349,2575.0,2574.8,0.7719]
[1727307289752,3.88364,2574.9,2574.8,0.7719]
[1727307290077,3.88394,2574.7,2574.6,0.8087643]
[1727307303279,3.8838,2574.8,2574.6,0.8087643]
[1727307303715,3.88359,2575.0,2574.6,0.8087643]
[1727307304013,3.88296,2575.4,2574.9,0.7863]
[1727307304219,1.21896777,2576.0,2574.9,0.7863]
[1727307304220,3.88209,2576.0,2575.4,4.66917]
[1727307304452,7.7638,2576.1,2575.8,3.66439727]
[1727307304733,0.81199101,2576.8,2575.2,3.0]
[1727307304734,3.88243,2575.7,2575.6,0.8306]
[1727307305828,3.88274,2575.5,2575.1,0.8313]
[1727307305978,4.47949727,2576.3,2575.1,0.8313]
[1727307305979,3.88308,2575.3,2575.1,0.8313]
[1727307306181,3.88319,2575.2,2575.1,0.8313]
[1727307306391,3.88294,2575.4,2575.1,0.8313]
[1727307306598,3.88279,2575.5,2575.1,0.8313]
[1727307306899,3.88306,2575.3,2575.1,0.8313]
[1727307307086,3.88279,2575.5,2575.1,0.8313]
[1727307307292,3.88249,2575.7,2575.1,0.8313]
[1727307307588,7.69372101,2576.2,2575.1,0.8313]
[1727307307589,3.88284,2575.5,2575.1,0.8313]
[1727307307794,3.7614636,2575.9,2575.1,0.8313]
[1727307308024,3.88337,2575.1,2574.7,0.7714]
[1727307308364,3.88373,2574.9,2574.7,0.7714]
[1727307309214,7.76688,2575.1,2574.7,0.7714]
[1727307309407,3.88342,2575.1,2574.7,0.7714]
[1727307309617,3.88324,2575.2,2574.7,0.7714]
[1727307310321,3.88311,2575.3,2574.7,0.7714]
[1727307310519,3.88311,2575.3,2574.8,3.66439727]
[1727307310738,3.88321,2575.2,2574.8,3.66439727]
[1727307310901,3.88321,2575.2,2574.7,0.7714]
[1727307312605,3.88311,2575.3,2574.7,0.7714]
[1727307312752,3.8828,2575.5,2574.9,0.8213]
[1727307313163,3.88259,2575.6,2575.1,0.8213]
[1727307313738,0.81199101,2576.0,2575.1,0.8213]
[1727307313922,3.88283,2575.5,2575.1,0.8213]
[1727307314142,3.88282,2575.5,2575.1,0.8213]
[1727307314321,3.88297,2575.4,2575.1,0.8213]
[1727307314513,3.88253,2575.7,2575.1,0.8213]
[1727307314937,3.88274,2575.5,2575.1,0.8213]
[1727307315320,3.88304,2575.3,2575.1,0.8213]
[1727307315726,3.88294,2575.4,2575.1,0.8213]
[1727307317018,3.88274,2575.5,2575.1,0.8213]
[1727307317221,7.7656,2575.5,2575.1,0.8213]
[1727307317416,7.76557,2575.5,2575.1,0.8213]
[1727307317660,3.88274,2575.5,2575.1,0.8213]
[1727307318029,7.76557,2575.5,2575.1,0.8213]
[1727307318623,3.88274,2575.5,2575.1,0.8213]
[1727307318864,7.76502,2575.7,2575.1,0.8213]
[1727307319019,7.76499,2575.7,2575.1,0.8213]
[1727307319347,3.88246,2575.7,2575.1,4.7046]
[1727307319836,3.88246,2575.7,2575.1,0.8213]
[1727307320078,3.88239,2575.8,2575.1,4.70454]
[1727307320363,4.69423101,2575.9,2575.1,4.70454]
[1727307320364,3.88271,2575.6,2575.1,0.8213]
[1727307320527,3.88275,2575.5,2575.1,0.8213]
[1727307320722,3.88298,2575.4,2575.1,0.8213]
[1727307321020,3.88276,2575.5,2575.1,0.8213]
[1727307321227,3.88308,2575.3,2575.1,0.8213]
[1727307321535,7.76621,2575.3,2575.1,0.8213]
[1727307321748,3.88291,2575.4,2575.1,0.8213]
[1727307321948,3.88281,2575.5,2575.1,0.8213]
[1727307322151,1.63779101,2575.7,2575.1,0.8213]
[1727307322152,3.88319,2575.2,2575.1,0.8213]
[1727307322363,3.88319,2575.2,2574.7,3.0]
[1727307322364,3.88319,2575.2,2574.8,0.77]
[1727307322937,7.76624,2575.3,2574.8,0.77]
[1727307323168,4.69482101,2575.5,2574.8,4.65368]
[1727307323342,3.88283,2575.5,2574.9,3.88364]
[1727307323541,3.88283,2575.5,2575.0,0.7642]
[1727307323730,3.88261,2575.6,2575.0,0.7642]
[1727307323943,1.21896777,2575.8,2575.0,0.7642]
[1727307323944,3.88276,2575.5,2575.0,0.7642]
[1727307325087,7.7656,2575.5,2575.0,0.7642]
[1727307325259,3.88276,2575.5,2575.0,0.7642]
[1727307325781,7.76561,2575.5,2575.0,0.7642]
[1727307325981,3.88276,2575.5,2575.0,0.7642]
[1727307326657,7.76558,2575.5,2575.0,0.7642]
[1727307326979,3.88327,2575.2,2575.0,0.7642]
[1727307327382,7.76597,2575.4,2575.0,0.7642]
[1727307327665,3.88311,2575.3,2575.0,0.7642]
[1727307330003,3.88298,2575.4,2575.0,0.7642]
[1727307330174,3.88323,2575.2,2575.0,0.7642]
[1727307330571,3.88364,2574.9,2574.8,0.8216]
[1727307330874,5.16459811,2575.3,2574.8,0.8216]
[1727307331084,0.81199101,2575.4,2574.9,3.88364]
[1727307331317,4.69459101,2575.6,2575.0,8.36940727]
[1727307331550,2.03375545,2575.9,2575.6,0.8216]
[1727307331551,0.81199101,2575.9,2575.6,0.8216]
[1727307331838,4.69407101,2576.0,2575.6,0.8216]
[1727307332139,1.21896777,2576.2,2575.6,0.8216]
[1727307332140,0.81199101,2576.2,2575.7,3.88239]
[1727307332441,3.88194,2576.1,2575.6,0.8216]
[1727307332651,7.76388,2576.1,2575.6,0.8216]
[1727307332855,3.88194,2576.1,2575.6,0.8216]
[1727307333027,3.88168,2576.2,2575.7,3.88242]
[1727307333241,3.88199,2576.0,2575.6,0.8216]
[1727307337040,3.88215,2575.9,2575.6,0.8216]
[1727307337446,3.88199,2576.0,2575.6,0.8216]
[1727307337675,7.76407,2576.0,2575.6,0.8216]
[1727307338829,3.88184,2576.1,2575.6,0.8216]
[1727307339071,3.88175,2576.2,2575.6,4.70415]
[1727307339396,3.88191,2576.1,2575.6,0.8216]
[1727307340748,3.88175,2576.2,2575.6,0.8216]
[1727307341084,3.88214,2575.9,2575.6,0.8216]
[1727307341235,3.88199,2576.0,2575.6,0.8216]
[1727307342235,3.88187,2576.1,2575.6,4.70411]
[1727307343449,4.69348101,2576.4,2575.9,0.759]
[1727307343650,3.88177,2576.2,2575.9,0.759]
[1727307343862,0.81199101,2576.4,2575.9,0.759]
[1727307343863,3.88163,2576.3,2575.9,0.759]
[1727307344079,3.88178,2576.2,2575.9,0.759]
[1727307344250,0.81199101,2576.4,2575.7,0.8302]
[1727307344454,3.88209,2576.0,2575.4,0.8302]
[1727307344707,3.88209,2576.0,2575.4,4.71299]
[1727307344853,3.88186,2576.1,2575.6,3.88256]
[1727307345047,4.69376101,2576.2,2575.6,3.88256]
[1727307345048,3.88177,2576.2,2575.7,3.94412139]
[1727307345247,3.88185,2576.1,2575.8,0.8148]
[1727307345677,4.3512341,2576.1,2575.8,0.8148]
[1727307346057,8.2331541,2576.1,2575.8,0.8148]
[1727307346261,3.88206,2576.0,2575.8,0.8148]
[1727307346511,3.88185,2576.1,2575.8,0.8148]
[1727307346664,4.69358101,2576.3,2575.8,0.8148]
[1727307346872,3.88172,2576.2,2575.8,0.8148]
[1727307347393,1.21896777,2576.4,2575.8,4.47919727]
[1727307347394,0.81199101,2576.4,2575.8,4.47919727]
[1727307347596,0.81199101,2576.4,2575.8,8.36143727]
[1727307347597,3.88153,2576.3,2575.8,8.36143727]
[1727307347782,3.88153,2576.3,2575.8,0.8148]
[1727307348519,8.57517101,2576.3,2575.8,0.8148]
[1727307348810,3.88153,2576.3,2575.8,0.8148]
[1727307349012,3.88169,2576.2,2575.8,0.8148]
[1727307356832,0.81199101,2576.4,2575.8,4.47919727]
[1727307357042,3.88155,2576.3,2575.9,3.88212]
[1727307357535,7.76318,2576.3,2575.8,4.47919727]
[1727307357695,3.88155,2576.3,2575.8,4.47919727]
[1727307358647,3.88169,2576.2,2575.8,4.47919727]
[1727307358796,3.88169,2576.2,2575.8,0.8148]
[1727307360439,3.8819,2576.1,2575.8,0.8148]
[1727307361656,3.88184,2576.1,2575.8,0.8148]
[1727307362057,3.88201,2576.0,2575.8,0.8148]
[1727307362262,7.76362,2576.2,2575.8,0.8148]
[1727307362468,3.88185,2576.1,2575.8,0.8148]
[1727307362789,3.88179,2576.2,2575.8,0.8148]
[1727307362790,7.76361,2576.2,2575.8,0.8148]
[1727307363118,3.88186,2576.1,2575.8,0.8148]
[1727307363321,3.88242,2575.8,2575.5,0.7532]
[1727307363735,3.88207,2576.0,2575.5,4.6359]
[1727307363938,3.88207,2576.0,2575.5,0.7532]
[1727307364460,3.88214,2575.9,2575.5,0.7532]
[1727307364631,3.88207,2576.0,2575.5,4.63588]
[1727307364835,4.69377101,2576.2,2575.7,0.7604]
[1727307365066,3.88197,2576.1,2575.7,0.7604]
[1727307365439,4.69377101,2576.2,2575.7,0.7604]
[1727307365767,3.882,2576.0,2575.7,0.7604]
[1727307366539,4.69377101,2576.2,2575.7,0.7604]
[1727307366743,3.88192,2576.1,2575.7,0.7604]
[1727307367866,4.69377101,2576.2,2575.7,4.64282]
[1727307368047,8.57556101,2576.2,2575.7,4.64282]
[1727307368358,3.88184,2576.1,2575.7,0.7604]
[1727307368531,4.69383101,2576.1,2575.7,0.7604]
[1727307370200,0.81199101,2576.1,2575.7,0.7604]
[1727307370370,0.81199101,2576.2,2575.8,3.88217]
[1727307370578,2.03516338,2576.5,2575.8,3.88217]
[1727307370579,1.21896777,2576.5,2576.1,4.42879727]
[1727307370770,3.88056,2577.0,2576.8,3.88064]
[1727307370771,0.81199101,2577.0,2576.8,3.88064]
[1727307370971,1.62682189,2577.2,2576.8,3.88064]
[1727307370972,0.81199101,2577.2,2576.9,3.93683288]
[1727307371169,5.95168768,2577.6,2577.0,7.54479727]
[1727307371170,6.76367869,2577.6,2577.0,7.54479727]
[1727307371453,6.76367869,2577.6,2576.6,3.0]
[1727307371454,3.88034,2577.1,2576.7,3.0]
[1727307371705,3.87993,2577.4,2576.7,3.7691]
[1727307371706,4.69192101,2577.4,2576.7,3.7691]
[1727307372000,0.81199101,2577.3,2576.7,3.7691]
[1727307372318,3.88088,2576.8,2576.3,0.7691]
[1727307372451,3.88055,2577.0,2576.3,4.65063]
[1727307372657,3.88055,2577.0,2576.3,0.7691]
[1727307373063,3.88055,2577.0,2576.4,3.88138]
[1727307373259,0.81199101,2577.1,2576.4,3.88138]
[1727307373591,5.09922777,2577.2,2576.4,3.88138]
[1727307373592,3.88059,2577.0,2576.5,0.8015]
[1727307374105,1.56385598,2577.1,2576.5,0.8015]
[1727307374106,3.88078,2576.8,2576.5,0.8015]
[1727307374318,3.88078,2576.8,2576.3,4.66072]
[1727307374463,3.88118,2576.6,2576.1,3.0]
[1727307374669,3.88125,2576.5,2576.1,0.7792]
[1727307375069,1.59769101,2576.7,2576.1,0.7792]
[1727307375070,3.88141,2576.4,2576.1,0.7792]
[1727307375327,3.88171,2576.2,2575.9,0.7792]
[1727307375712,4.69340101,2576.4,2575.9,0.7792]
[1727307375883,3.88171,2576.2,2575.9,0.7792]
[1727307377241,3.88171,2576.2,2575.4,3.32574586]
[1727307377242,3.88171,2576.2,2575.5,0.7646]
[1727307377391,3.88208,2576.0,2575.5,0.7646]
[1727307377591,3.88208,2576.0,2575.5,3.7646]
[1727307377784,5.44600101,2576.2,2575.5,3.7646]
[1727307377785,5.44600101,2576.2,2575.5,0.7646]
[1727307377992,4.63401,2576.2,2575.6,3.88249]
[1727307378526,3.88171,2576.2,2575.7,3.88239]
[1727307378729,3.88171,2576.2,2575.8,0.07763439]
[1727307379116,3.88179,2576.2,2575.5,4.64724]
[1727307379339,3.88198,2576.0,2575.5,0.7646]
[1727307379635,4.69385101,2576.1,2575.5,4.6473]
[1727307379834,3.88202,2576.0,2575.5,0.7646]
[1727307380414,0.81199101,2576.1,2575.5,0.7646]
[1727307380605,0.81199101,2576.1,2575.6,3.88249]
[1727307380790,4.69376101,2576.2,2575.6,3.88249]
[1727307380987,0.81199101,2576.2,2575.7,3.88242]
[1727307381626,4.69368101,2576.2,2575.6,3.88249]
[1727307382288,4.69368101,2576.2,2575.7,3.88235]
[1727307382495,4.69368101,2576.2,2575.6,3.88249]
[1727307382927,4.69368101,2576.2,2575.7,3.88243]
[1727307383417,4.69368101,2576.2,2575.6,3.88249]
[1727307385134,4.69368101,2576.2,2575.5,0.7646]
[1727307385135,0.81199101,2576.2,2575.5,0.7646]
[1727307385309,0.81199101,2576.3,2576.0,0.7822]
[1727307385506,0.81199101,2576.4,2576.0,0.7822]
[1727307385698,0.81199101,2576.4,2576.0,4.66411]
[1727307386093,0.81199101,2576.5,2576.0,4.66411]
[1727307386295,0.81199101,2576.4,2576.0,4.66411]
[1727307386533,0.81199101,2576.4,2576.0,0.7822]
[1727307386701,0.81199101,2576.4,2576.0,4.66412]
[1727307386903,0.81199101,2576.5,2576.1,3.88183]
[1727307387103,1.21896777,2576.6,2576.2,3.88165]
[1727307387104,0.81199101,2576.6,2576.2,3.88165]
[1727307387887,0.81199101,2576.6,2576.1,3.88183]
[1727307388229,4.69308101,2576.6,2576.1,3.88183]
[1727307390608,0.81199101,2576.6,2576.0,0.7822]
[1727307390811,0.81199101,2576.6,2576.1,3.88173]
[1727307390812,3.88112,2576.6,2576.1,3.88173]
[1727307391698,4.69305101,2576.7,2576.1,3.88173]
[1727307391924,8.57407101,2576.7,2576.1,3.88173]
[1727307392202,8.57402101,2576.7,2576.1,3.88173]
[1727307392426,3.88134,2576.5,2576.0,4.66414]
[1727307392602,0.7795,2576.4,2576.0,0.7822]
[1727307392849,4.66089,2576.4,2576.0,0.7822]
[1727307393916,3.88154,2576.3,2576.0,0.7822]
[1727307394664,3.88169,2576.2,2575.7,0.7901]
[1727307394822,4.69368101,2576.2,2575.7,0.7901]
[1727307395753,4.69368101,2576.2,2575.7,4.67251]
[1727307396347,4.69368101,2576.2,2575.7,0.7901]
[1727307396648,3.88185,2576.1,2575.7,0.7901]
[1727307397025,8.57551101,2576.2,2575.7,0.7901]
[1727307397220,3.88169,2576.2,2575.7,4.67253]
[1727307397422,3.88169,2576.2,2575.7,4.67245]
[1727307397639,7.76352,2576.2,2575.7,4.67245]
[1727307397810,3.88169,2576.2,2575.7,8.55481]
[1727307398015,3.88169,2576.2,2575.7,4.67245]
[1727307398213,3.88169,2576.2,2575.7,0.7901]
[1727307398454,3.88184,2576.1,2575.7,0.7901]
[1727307398768,7.76348,2576.2,2575.7,0.7901]
[1727307399064,3.88169,2576.2,2575.7,4.6725]
[1727307399226,0.81199101,2576.3,2575.8,3.88227]
[1727307399557,5.47296101,2576.4,2575.8,3.88227]
[1727307399713,4.69346101,2576.4,2575.8,3.88227]
[1727307399909,4.69346101,2576.4,2575.7,0.7901]
[1727307400137,4.69346101,2576.4,2575.9,3.88205]
[1727307400545,0.81199101,2576.4,2575.9,3.88212]
[1727307400745,0.81199101,2576.4,2575.7,3.66439727]
[1727307400746,0.81199101,2576.6,2576.2,3.88166]
[1727307401052,0.81199101,2576.7,2576.1,3.88169]
[1727307401211,4.69293101,2576.7,2576.1,3.88169]
[1727307401411,3.88108,2576.6,2576.1,3.88169]
[1727307402518,0.81199101,2576.7,2576.1,3.88169]
[1727307402754,5.48244101,2576.8,2576.2,3.88161]
[1727307402961,4.69284101,2576.8,2576.3,3.8815]
[1727307403116,4.69284101,2576.8,2576.4,0.7901]
[1727307403621,8.57373101,2576.8,2576.4,0.7901]
[1727307403939,8.57371101,2576.8,2576.4,0.7901]
[1727307404247,4.69284101,2576.8,2576.4,0.7901]
[1727307404456,8.57373101,2576.8,2576.4,0.7901]
[1727307405257,3.88094,2576.7,2576.4,0.7901]
[1727307405412,0.81199101,2576.8,2576.4,4.67146]
[1727307405611,0.81199101,2577.0,2576.4,0.7901]
[1727307405920,3.88096,2576.7,2576.4,0.7901]
[1727307406267,3.88096,2576.7,2576.2,3.7901]
[1727307406461,3.88087,2576.8,2576.2,7.67168]
[1727307406665,4.69286101,2576.8,2576.2,7.67168]
[1727307406871,3.88095,2576.7,2576.2,7.67168]
[1727307407055,3.88121,2576.6,2576.2,0.7901]
[1727307407234,3.88113,2576.6,2576.1,3.88181]
[1727307407760,3.88109,2576.6,2576.1,3.88169]
[1727307409124,5.47744101,2576.7,2576.0,0.7612]
[1727307409125,3.88127,2576.5,2576.0,0.7612]
[1727307409368,3.88145,2576.4,2576.0,0.7612]
[1727307410328,0.8061,2576.3,2575.4,0.80752078]
[1727307410568,0.81199101,2576.2,2575.8,3.88221]
[1727307410774,1.61809101,2576.3,2575.8,3.88221]
[1727307410941,2.28994289,2576.3,2575.6,3.88244]
[1727307411139,1.61809101,2576.3,2575.8,3.88226]
[1727307411478,0.8061,2576.3,2575.8,3.88219]
[1727307411643,4.68778,2576.3,2575.6,7.76494]
[1727307411847,4.68778,2576.3,2575.7,3.8824]
[1727307412637,3.88168,2576.2,2575.7,3.8824]
[1727307414947,3.88168,2576.2,2575.6,3.88244]
[1727307415272,7.76345,2576.2,2575.6,3.88244]
[1727307415475,3.88168,2576.2,2575.6,3.88244]
[1727307415676,3.88168,2576.2,2575.7,3.88241]
[1727307416344,3.88168,2576.2,2575.6,3.88244]
[1727307416544,3.88168,2576.2,2575.6,7.76493]
[1727307416967,7.76346,2576.2,2575.6,3.88244]
[1727307417129,8.57545101,2576.2,2575.6,3.88244]
[1727307417329,8.57545101,2576.2,2575.6,7.76495]
[1727307417959,8.57545101,2576.2,2575.6,3.88244]
[1727307418172,4.69367101,2576.2,2575.7,3.88233]
[1727307418534,4.69367101,2576.2,2575.5,4.49439727]
[1727307418535,0.81199101,2576.2,2575.5,4.49439727]
[1727307418774,4.69347101,2576.4,2575.9,0.7581]
[1727307419140,3.88156,2576.3,2575.9,0.7581]
[1727307419681,3.88178,2576.2,2575.7,3.0]
[1727307420183,3.88185,2576.1,2575.7,3.0]
[1727307420331,0.8135,2575.9,2575.5,1.20065345]
[1727307420534,4.69571,2575.9,2575.4,3.88281]
[1727307420735,4.69571,2575.9,2575.3,7.6411]
[1727307420736,3.88229,2575.8,2575.3,7.6411]
[1727307421046,3.88229,2575.8,2575.3,3.7581]
[1727307421250,5.50770101,2575.9,2575.3,3.7581]
[1727307421462,9.38995101,2575.9,2575.3,7.64106]
[1727307421647,3.88231,2575.8,2575.3,6.88296]
[1727307421848,5.50770101,2575.9,2575.4,3.88278]
[1727307422381,4.69571,2575.9,2575.4,3.88278]
[1727307422685,0.81199101,2576.0,2575.5,3.88266]
[1727307422986,3.88201,2576.0,2575.5,3.88266]
[1727307423838,5.48311101,2576.1,2575.5,3.88266]
[1727307424439,5.48311101,2576.1,2575.6,4.68699]
[1727307424640,1.60119101,2576.1,2575.7,3.88241]
[1727307424966,5.10059777,2576.3,2575.7,7.76475]
[1727307424967,0.81199101,2576.2,2575.7,7.76475]
[1727307425273,0.81199101,2576.2,2575.8,3.88224]
[1727307426079,4.69371101,2576.2,2575.7,3.88234]
[1727307426581,0.81199101,2576.2,2575.8,3.88225]
[1727307426735,0.81199101,2576.2,2575.9,3.88199]
[1727307426942,1.21896777,2576.4,2576.0,3.88188]
[1727307426943,0.81199101,2576.4,2576.0,3.88188]
[1727307427260,5.47988101,2576.5,2576.0,3.88187]
[1727307427436,0.81199101,2576.4,2576.1,3.88181]
[1727307427637,1.59859101,2576.5,2576.0,8.59017]
[1727307427967,1.59859101,2576.5,2576.0,4.70827]
[1727307428151,5.47983101,2576.5,2576.0,8.59018]
[1727307428349,1.59859101,2576.5,2576.1,3.88175]
[1727307428671,0.81199101,2576.7,2576.3,3.88152]
[1727307429996,0.81199101,2576.8,2576.3,0.7759]
[1727307430141,5.90988777,2576.9,2576.4,3.88123]
[1727307430142,9.38366101,2576.9,2576.4,3.88123]
[1727307430341,5.50291101,2576.9,2576.4,3.88123]
[1727307431642,0.81199101,2576.9,2576.4,3.88123]
[1727307431880,0.81199101,2577.0,2576.4,3.88123]
[1727307432175,0.81199101,2577.0,2576.6,3.88105]
[1727307432476,0.81199101,2577.1,2576.8,3.88075]
[1727307432697,0.8119,2577.2,2576.8,3.88075]
[1727307432888,0.81199101,2577.4,2577.1,3.88024]
[1727307433184,0.81199101,2577.4,2576.7,0.8257]
[1727307433185,5.52286531,2577.6,2577.0,3.88034]
[1727307433345,1.64315531,2577.6,2577.1,3.88031]
[1727307433544,1.64315531,2577.6,2576.7,4.49009727]
[1727307433545,1.64315531,2577.6,2576.7,3.66439727]
[1727307433746,1.64315531,2577.6,2577.4,0.8142]
[1727307433747,0.0368643,2577.6,2577.4,0.8142]
[1727307434865,0.0368643,2577.6,2577.5,0.07755054]
[1727307435043,0.0368643,2577.6,2577.5,3.95727054]
[1727307435548,0.0368643,2577.6,2577.5,3.87972]
[1727307435744,0.0368643,2577.6,2577.5,7.42972]
[1727307436044,0.0368643,2577.6,2577.5,11.89881727]
[1727307436547,0.0368643,2577.6,2577.5,8.23442]
[1727307441038,0.0368643,2577.6,2577.5,11.89881727]